Cogmind - Beta 14 @@@ ROGUE MODE // 2024.10.11 @ 16:13:19 Player: Syanka Result: Destroyed by as-80622 with Assembled Rifle Performance ------------- Evolutions (0) 0 Regions Visited (3) 600 Robots Destroyed (27) 135 Value Destroyed (414) 414 Prototype IDs (31) 620 Alien Tech Used (0) 0 Bonus (291) 291 TOTAL SCORE: 2060 Bonus ------- Aligned with FarCom 300 Friendly Fire -9 Cogmind --------- Core Integrity 0/250 Matter 245/300 Energy 100/100 System Corruption 3% Temperature Cool (0) Movement Treading (400) Ox3 Location -10/Exiles Parts ------- > --- POWER (1) -------- (None) > --- PROPULSION (2) --- Improved Treads > --- UTILITY (2) ------ Huge Storage Unit > --- WEAPON (2) ------- Improved Light Cannon Hammer > --- INVENTORY (25) --- Light Treads Light Treads Improved Treads Improved Treads Wheel Wheel Structural Scanner Structural Scanner Seismic Detector Light Armor Plating Hacking Suite Hacking Suite Skeleton Box Field Recycling Unit (7) Particle Gun Particle Gun Particle Gun AWS/Thermal Guided Plasma Cannon Improved Light Cannon Improved Light Cannon Improved Light Cannon Grenade Launcher Datajack Peak State ------------ > --- POWER ------------ Ion Engine > --- PROPULSION ------- Improved Treads Improved Treads > --- UTILITY ---------- Improved Heat Sink Huge Storage Unit > --- WEAPON ----------- Guided Plasma Cannon Improved Light Cannon > --- INVENTORY -------- Light Treads Light Treads Improved Treads Improved Treads Wheel Wheel Structural Scanner Structural Scanner Seismic Detector Light Armor Plating Hacking Suite Hacking Suite Skeleton Box Field Recycling Unit Particle Gun Particle Gun Particle Gun AWS/Thermal Improved Light Cannon Improved Light Cannon Improved Light Cannon Grenade Launcher Datajack Hammer [Rating: 24] Favorites ----------- Power Ion Engine Engine Ion Engine Power Core Light Nuclear Core Propulsion Improved Treads Treads Improved Treads Wheel Wheel Utility Seismic Detector Device Seismic Detector Storage Huge Storage Unit Weapon Improved Light Cannon Energy Gun Small Laser Energy Cannon Guided Plasma Cannon Ballistic Gun Light Assault Rifle Ballistic Cannon Improved Light Cannon Launcher Grenade Launcher Special Weapon Mining Laser Impact Weapon Hammer Special Melee Weapon Datajack Build | -11 -10 -10 -10 ------- Run | Yrd Mat Min Exi Slots Evolved . | . . . . Power . | . . . . Propulsion . | . . . . Utility . | . . . . Weapon . | . . . . Parts Attached 63 | 8 41 9 5 Power 4 | 1 3 . . Engine 3 | 1 2 . . Core 1 | . 1 . . Reactor . | . . . . Propulsion 23 | 3 14 6 . Treads 9 | . 5 4 . Leg . | . . . . Wheel 14 | 3 9 2 . Hover . | . . . . Flight . | . . . . Utility 9 | 2 6 . 1 Device 6 | 1 4 . 1 Storage 3 | 1 2 . . Processor . | . . . . Hackware . | . . . . Protection . | . . . . Artifact . | . . . . Weapon 27 | 2 18 3 4 Energy Gun 7 | 1 6 . . Energy Cannon 1 | . . . 1 Ballistic Gun 6 | 1 5 . . Ballistic Cannon 4 | . 2 2 . Launcher 4 | . 2 1 1 Special Weapon 2 | . 2 . . Impact Weapon 2 | . 1 . 1 Slashing Weapon . | . . . . Piercing Weapon . | . . . . Special Melee Weapon 1 | . . . 1 Unidentified Prototypes . | . . . . Parts Lost 4 | . 1 . 3 Power 2 | . 1 . 1 Propulsion 1 | . . . 1 Utility 1 | . . . 1 Weapon . | . . . . Highest Loss Streak 3 | . 1 . 3 To Critical Strikes . | . . . . Average Slot Usage (%) 99 | . 99 100 99 Engine 13 | . 12 14 13 Treads 20 | . 9 27 28 Wheel 7 | . 17 . . Device 13 | . 14 14 13 Storage 14 | . 14 14 14 Energy Gun 1 | . 5 . . Ballistic Gun 3 | . 8 . . Ballistic Cannon 19 | . 12 22 23 Launcher 2 | . . 5 . Peak Build Rating 24 | 7 14 15 24 Average Rating 13 | 5 10 14 17 On Entrance 8 | . 7 12 15 Naked Turns . | . . . . Heaviest Build 101 | 13 101 94 100 Greatest Support 46 | 26 46 46 46 Greatest Overweight (x) 10 | . 10 4 2 Average Overweight (x) 2 | . 2 2 1 Largest Inventory Capacity 25 | 8 25 25 25 Average Capacity 22 | 7 18 25 25 Most Carried 25 | 8 25 25 25 Average Carried 21 | 5 17 24 24 Final Capacity 25 | 8 25 25 25 Final Carried 25 | 8 25 24 25 Class Distribution -------------------- 100% | Mutant Dominant Class ---------------- Mutant | -10/Materials Mutant | -10/Mines Mutant | -10/Exiles Resources | -11 -10 -10 -10 ----------- Run | Yrd Mat Min Exi Matter Collected 1006 | 295 529 182 . Remotely . | . . . . Salvage Created 872 | 155 684 19 14 Parts 70 | 16 53 1 . Haulers Intercepted 2 | . 2 . . Recyclers Shooed 3 | . 3 . . Parts Field Recycled 25 | . 25 . . Retrieved Matter 80 | . 80 . . Parts Self-Destructed . | . . . . Prevented . | . . . . Kills | -11 -10 -10 -10 ------- Run | Yrd Mat Min Exi Combat Hostiles Destroyed 16 | . 9 3 4 Guns 5 | . 5 . . Cannons 4 | . 1 3 . AOE 7 | . 3 . 4 Classes Destroyed 10 | 2 7 1 . Worker 2 | . 1 1 . Builder 1 | . 1 . . Tunneler 5 | 4 1 . . Hauler 2 | . 2 . . Recycler 3 | 1 2 . . Operator 2 | . 2 . . Watcher 3 | . 3 . . Swarmer 3 | . 3 . . Grunt 6 | . 6 . . Assembled 7 | . . 3 4 Best Kill Streak 5 | 5 3 1 4 Combat Bots Only 4 | . 3 1 4 Max Kills in Single Turn 3 | 1 3 1 2 Gunslinging . | . . . . Exploded 3 | . 3 . 2 Melee . | . . . . Uniques/NPCs Destroyed . | . . . . Combat | -11 -10 -10 -10 -------- Run | Yrd Mat Min Exi Hostile Shots Fired 97 | . 30 10 57 Missed 22 | . 6 2 14 Damage Taken 1241 | . 375 101 765 Core 250 | . 42 . 208 Absorbed by Shields . | . . . . Regen/Repaired (Parts) 19 | . 19 . . Core Remaining (%) 100 | 100 . . . Volleys Fired 101 | 15 69 9 8 Largest 2 | 2 2 2 1 Hottest 120 | 60 105 78 120 Shots Fired 184 | 29 129 18 8 Gun 115 | 29 86 . . Cannon 58 | . 34 18 6 Launcher 3 | . 1 . 2 Special 8 | . 8 . . Kinetic 138 | 15 105 18 . Thermal 43 | 14 23 . 6 Explosive 3 | . 1 . 2 Electromagnetic . | . . . . Robot Hit Streak 11 | 4 11 10 2 Robot Miss Streak 5 | 2 3 5 . Penetration Max . | . . . . Secondary Targets . | . . . . Shots Hit Robots 94 | 18 65 6 5 Core Hits 60 | 7 35 4 14 Critical Kills . | . . . . Critical Parts Destroyed 2 | . 2 . . Critical Strikes 2 | . 2 . . Destroy 2 | . 2 . . Melee Attacks 11 | . 4 . 7 Impact 10 | . 4 . 6 Slashing . | . . . . Piercing . | . . . . Sneak Attacks 1 | . . . 1 Combat Hostiles . | . . . . Follow-up Attacks . | . . . . Damage Inflicted 1417 | 159 823 136 299 Guns 690 | 159 531 . . Cannons 257 | . 124 124 9 Explosions 363 | . 144 . 219 Melee 71 | . . . 71 Ramming 12 | . . 12 . Kinetic 713 | 59 530 124 . Thermal 258 | 100 149 . 9 Explosive 363 | . 144 . 219 Electromagnetic . | . . . . Impact 71 | . . . 71 Slashing . | . . . . Piercing . | . . . . Highest Corruption 3 | . . . 3 Average Corruption 3 | . . . 3 Corruption Purged . | . . . . Corruption Blocked . | . . . . Effects 1 | . . . 1 Heat Flow Errors 1 | . . . 1 Overload Shots . | . . . . Overflow Damage 28 | . 28 . . Projectiles . | . . . . Explosions 28 | . 28 . . Melee . | . . . . Knockbacks 4 | . 1 1 2 Impact 2 | . . . 2 Kinetic 2 | . 1 1 . Secondary . | . . . . Self-Inflicted Damage 2 | . . . 2 Shots 1 | . . . 1 Rammed 1 | . . 1 . Targets Rammed 2 | . . 2 . Kicked . | . . . . Crushed 1 | . . 1 . Highest Temperature 144 | 80 144 130 116 Average Temperature 35 | 47 26 54 53 Received Heat Transfer 291 | . 171 60 60 Siege Activations . | . . . . Robots Corrupted . | . . . . Combat Hostiles . | . . . . Parts Fried . | . . . . Impact Corruptions . | . . . . Robots Melted . | . . . . Combat Hostiles . | . . . . Parts Melted 1 | . 1 . . Heat Transferred 622 | 225 337 . 60 Parts Sabotaged . | . . . . Parts Stolen . | . . . . Parts Stripped . | . . . . Power Chain Reactions . | . . . . Alert | -11 -10 -10 -10 ------- Run | Yrd Mat Min Exi Peak Influence 203 | 25 203 17 . Initial 16 | . 16 1 . Average 23 | 10 46 4 . Maximum Alert Level 1 | . 1 . . Low Security (%) 99 | 100 98 100 . Level 1 . | . 1 . . Level 2 . | . . . . Level 3 . | . . . . Level 4 . | . . . . Level 5 . | . . . . High Security . | . . . . Max Security . | . . . . Squads Dispatched 2 | . 2 . . Investigation . | . . . . Extermination . | . . . . Reinforcement 2 | . 2 . . Assault . | . . . . Garrison . | . . . . Intercept . | . . . . Searches Triggered . | . . . . Construction Impeded . | . . . . Haulers Reinforced . | . . . . Active Scanning Responses . | . . . . Cargo Convoy Interrupts . | . . . . Stealth | -11 -10 -10 -10 --------- Run | Yrd Mat Min Exi Distress Signals 1 | . 1 . . Communications Jammed . | . . . . Distress Signals . | . . . . Times Spotted 31 | . 19 4 8 Peak Tracking Total 9 | . 3 3 9 Tactical Retreats 5 | . 3 2 . Traps | -11 -10 -10 -10 ------- Run | Yrd Mat Min Exi Traps Triggered 5 | . 5 . . Indirectly . | . . . . Trap Hack Attempts . | . . . . Triggered . | . . . . Disarmed . | . . . . Reprogrammed . | . . . . Reused . | . . . . Traps Extracted . | . . . . Installed . | . . . . Triggered . | . . . . Machines | -11 -10 -10 -10 ---------- Run | Yrd Mat Min Exi Machines Disabled 1 | . 1 . . Max in Single Turn 1 | . 1 . . Machines Repaired . | . . . . Machines Dismantled . | . . . . Machines Sabotaged . | . . . . Overloaded Fab Kills . | . . . . Hacking | -11 -10 -10 -10 --------- Run | Yrd Mat Min Exi Machines Accessed 7 | . 6 . 1 Terminals 5 | . 5 . . Fabricators . | . . . . Repair Stations 1 | . 1 . . Recycling Units . | . . . . Scanalyzers . | . . . . Garrison Access . | . . . . Total Hacks 14 | . 13 . 1 Successful 5 | . 4 . 1 Failed 8 | . 8 . . Catastrophic 1 | . 1 . . Database Lockouts 1 | . 1 . . Manual 11 | . 10 . 1 Terminals 11 | . 11 . . Fabricators . | . . . . Repair Stations 2 | . 2 . . Recycling Units . | . . . . Scanalyzers . | . . . . Garrison Access . | . . . . Terminal Hacks 2 | . 1 . 1 Robot Analysis 1 | . 1 . . Derelict Proto ID Bank 1 | . . . 1 Fabricator Hacks . | . . . . Repair Station Hacks 2 | . 2 . . Scan Component 1 | . 1 . . Repair 1 | . 1 . . Recycling Unit Hacks . | . . . . Scanalyzer . | . . . . Garrison Access Hacks . | . . . . Unauthorized Hacks 1 | . 1 . . Terminals 1 | . 1 . . Skim 1 | . 1 . . Fabricators . | . . . . Repair Stations . | . . . . Recycling Units . | . . . . Scanalyzers . | . . . . Garrison Access . | . . . . Data Cores Recovered . | . . . . Used . | . . . . Hacking Detections 5 | . 5 . . Full Trace Events . | . . . . Feedback Events . | . . . . Feedback Blocked . | . . . . Robot Schematics Acquired . | . . . . Robots Built . | . . . . Authchips . | . . . . Time . | . . . . Total Robot Build Rating . | . . . . Part Schematics Acquired . | . . . . Parts Built . | . . . . Authchips . | . . . . Time . | . . . . Total Part Build Rating . | . . . . Parts Repaired 1 | . 1 . . Time 26 | . 26 . . Parts Recycled . | . . . . Recycled Matter . | . . . . Retrieved Matter . | . . . . Retrieved Components . | . . . . Parts Scanalyzed . | . . . . Part Schematics Acquired . | . . . . Parts Damaged . | . . . . Bothacking | -11 -10 -10 -10 ------------ Run | Yrd Mat Min Exi Used RIF Installer . | . . . . Robots Hacked 1 | . . . 1 Non-combat . | . . . . Combat 1 | . . . 1 Robot Hacks Applied 1 | . . . 1 parse_system 1 | . . . 1 Relay Couplers Released . | . . . . Fabnet Peak Effective % . | . . . . Robots Rewired . | . . . . Allies Hacked . | . . . . Hacks Repelled . | . . . . Allies | -11 -10 -10 -10 -------- Run | Yrd Mat Min Exi Total Allies . | . . . . Largest Group . | . . . . Highest-Rated Group . | . . . . Highest-Rated Ally . | . . . . Total Orders . | . . . . Ally Attacks . | . . . . Total Damage . | . . . . Kills . | . . . . Allies Corrupted . | . . . . Allies Melted . | . . . . Intel | -11 -10 -10 -10 ------- Run | Yrd Mat Min Exi Robot Analysis Total 1 | . 1 . . Derelict Logs Recovered 1 | . . 1 . Drone Launches . | . . . . Drone Recoveries . | . . . . Exploration | -11 -10 -10 -10 ------------- Run | Yrd Mat Min Exi Turns Passed 5394 | 117 1981 2367 929 Spaces Moved 1795 | 48 1034 443 270 Core 1 | 1 . . . Treads 839 | . 146 423 270 Legs . | . . . . Wheels 955 | 47 888 20 . Hover . | . . . . Flight . | . . . . Fastest Speed 50 | 50 80 140 240 Average Speed 200 | 88 127 311 316 Slowest Speed 320 | 100 320 320 320 Overloaded Moves . | . . . . Propulsion Burnouts . | . . . . Robots Hopped . | . . . . Cave-ins Triggered . | . . . . Exploration Rate (%) 58 | 4 95 90 43 Regions Visited 3 Branch Regions 2 Pre-discovered Areas 1 | . . 1 . Known Exits Taken . | . . . . Unknown Exits Taken 3 | 1 1 1 . Scrap Searched . | . . . . Spaces Dug 20 | . 20 . . Terrain Destroyed 37 | . 21 2 14 Melee 2 | . 2 . . Projectile 13 | . 8 2 3 AOE 22 | . 11 . 11 Terrain Rammed . | . . . . Walls Destroyed . | . . . . Machines Disabled . | . . . . Actions | -11 -10 -10 -10 --------- Run | Yrd Mat Min Exi Total 3385 | 93 1562 1404 326 Wait 1329 | 12 346 941 30 Move 1792 | 47 1033 442 270 Hop . | . . . . Pick Up 51 | 9 39 . 3 Fast Attach 14 | 7 7 . . Attach 1 | . 1 . . Detach . | . . . . Swap 48 | 1 33 9 5 Drop 36 | 2 30 1 3 Fire 101 | 15 69 9 8 Melee 11 | . 4 . 7 Ram . | . . . . Kick . | . . . . Crush 2 | . . 2 . Escape Stasis . | . . . . Rewire . | . . . . Trap . | . . . . Miscellaneous . | . . . . Route ------- -11/Scrapyard -10/Materials (discovered 4 exits: [*Mat x3] / [*Min]) -10/Mines (discovered 4 exits: [*Mat x2] / *Exi / [*Sub]) -10/Exiles History --------- Turn | Location | Event 17 | -11/Scrapyard | Discovered new exit (range 16) 118 | -11/Scrapyard | Entered Materials 218 | -10/Materials | Discovered new exit (range 11) 251 | -10/Materials | Discovered new exit (range 16) 302 | -10/Materials | Build established: Mutant 472 | -10/Materials | Discovered new exit (range 16) 1511 | -10/Materials | Discovered new exit (range 16) 1542 | -10/Materials | Central database locked down 1895 | -10/Materials | Repaired Wheel 2099 | -10/Materials | Entered Mines 2103 | -10/Mines | Assembled infested the area 3176 | -10/Mines | Learned location of Zion (-6) 3250 | -10/Mines | Found a hidden stash of uninstalled traps 4035 | -10/Mines | Discovered new exit (range 9) 4089 | -10/Mines | Discovered new exit (range 15) 4124 | -10/Mines | Discovered new exit (range 7) 4453 | -10/Mines | Deemed a non-threat by the Exiles lab entrance 4453 | -10/Mines | Discovered new exit (range 5) 4466 | -10/Mines | Entered Exiles 4546 | -10/Exiles | Met 8R-AWN 4591 | -10/Exiles | Met EX-HEX 4697 | -10/Exiles | Met EX-BIN 4742 | -10/Exiles | Aligned with FarCom system 4745 | -10/Exiles | Given EX-Vault access code 4822 | -10/Exiles | Opened EX-Vault 4841 | -10/Exiles | Found Gui. Plasma Cannon 4856 | -10/Exiles | Found AWS/Thermal 4880 | -10/Exiles | Found Skeleton Box 4954 | -10/Exiles | Warned to stay clear of 0b10 Research branches 5350 | -10/Exiles | Attacked by the Exiles 5379 | -10/Exiles | Core integrity fell below 50% 5383 | -10/Exiles | Core integrity fell below 20% 5395 | -10/Exiles | Destroyed by as-80622 with Assembled Rifle Last Messages --------------- 05380_ Penetrated by HV Slug. 05380_ HV Slug penetrates Wall. 05380_ Penetrated by HV Slug. 05380_ HV Slug penetrates Wall. 05382_ Wall collapses. 05383_ Penetrated by HV Slug. 05383_ Imp. Heat Sink destroyed. 05383_ HV Slug penetrates Wall. 05383_ Penetrated by HV Slug. 05383_ HV Slug penetrates Wall. 05385_ Penetrated by HV Slug. 05385_ HV Slug penetrates Wall. 05387_ HV Slug penetrates Earth. 05387_ Penetrated by HV Slug. 05387_ HV Slug penetrates Wall. 05388_ Wall collapses. 05388_ 8R-AWN knocked back. 05389_ Penetrated by HV Slug. 05393_ Imp. Treads destroyed. 05393_ 8R-AWN knocked back. Map ----- +----------------------------------------------------+ | ?????????????????????????????????????????????????? | | ?????????????????????????????????????????????????? | | ?????????????????????????????????????????????????? | | ?????????????????????????????????????????????????? | | ?????????????????????????????????????????????????? | | ?????????????????????????????????????????????????? | | ?????????????????????????????????????????????????? | | ?????????????????????????????????????????????????? | | ?????????????????????????????????????????????????? | | ?????????????????????????????????????????????????? | | ?????????????????????????????????????????????????? | | ???????????????????????????????????? ?????????? | | #??????????????????????????????????? ?????????? | | ##?????????????????????????????????# #?????????? | | #???????????????????????????????## ##????????? | | "#???????????????????????????????# #????????? | | "#???????????#####???????????????# #????????? | | "##?????????##" #??????????????#; #????????? | | ""###???????#" #?????????????#; #??????????? | | """#??????##" ##?????????###; #??????????? | | "#????### "##?????## #;# #???????????? | | ##???# #######;#; #???????????? | | ##?## #"" ; ##???????????? | | ### a a * ##???????????? | | ## % % #???????????? | | #### @ ##??????????? | | ""#?#"""""## g ###????????? | | #"""##?######## * ###??????? | | ######?????????#### # ##?????? | | ##?????????????????######### #?????? | | ##??????????????????????????### #?????? | | ""#?????????????????????????????### #?????? | | "##??????????????????????????????#" ##????? | | """##???????????????????????????????#### ###??? | | ####???????????????????????????????????# ##?? | | ???????????????????????????????????????## ### | | ????????????????????????????????????????### # | | ??????????????????????????????????????????# ## | | ??????????????????????????????????????????## ##? | | ???????????????????????????????????????????#####?? | | ?????????????????????????????????????????????????? | | ?????????????????????????????????????????????????? | | ?????????????????????????????????????????????????? | | ?????????????????????????????????????????????????? | | ?????????????????????????????????????????????????? | | ?????????????????????????????????????????????????? | | ?????????????????????????????????????????????????? | | ?????????????????????????????????????????????????? | | ?????????????????????????????????????????????????? | | ?????????????????????????????????????????????????? | +----------------------------------------------------+ Best States ------------- Heat Dissipation 39 Energy Generation 14 Energy Capacity 250 Matter Stores 300 Matter Capacity 300 Sight Range 16 Terrain Scan Density 10 Evasion (%) 44 Recoil Reduction 2 Item Schematics ----------------- None Robot Schematics ------------------ None Fabricated ------------ Nothing Alien Tech Used ----------------- None Achievements -------------- None Challenges ------------ None Game ------ Seed IntegrityOmegaFragment Manual? 0 Play Time 00:33:35 Cumulative 166.9 hours Start 2024.10.07 @ 22:16:19 End 2024.10.11 @ 16:13:19 Sessions 4 Manual Loads 0 Difficulty Rogue Special Mode None Game No. 98 Rogue 85 Adventurer 13 Explorer 0 Win Type - Total 3 Types 3/0/0/0/0/0/0/0/0 Lore% 51 Gallery% 67 Achievement% 56 Wizard Run 0 Options --------- Layout 2 ASCII 0 Keyboard 1 Movement Numpad Keybinds 0 Fullscreen 2 Font 16/Swanston Map View 55x47 Zoom Use 0% Tactical HUD 1 Map Filters NONE Filters NONE Steam 0 RUN: 88ac5e87-e40d-4f2f-9f41-1d0f89313c4b